fUSD/lending_fUSD_20240301
["ID","MTS","AMOUNT","RATE_DAILY","PERIOD"]
[315960571,1709304661938,-500.0,0.00022739,2]
[315960572,1709304661948,-500.0,0.00022739,2]
[315960573,1709304661958,-688.28,0.00022739,2]
[315960574,1709304661974,-500.0,0.00022739,2]
[315960575,1709304661983,-901.9,0.00022739,2]
[315960576,1709304661995,-500.0,0.00022739,2]
[315960577,1709304662006,-500.0,0.00022739,2]
[315960578,1709304662017,-500.0,0.00022739,2]
[315960579,1709304662027,-500.0,0.00022739,2]
[315960580,1709304662037,-500.0,0.00022739,2]
[315960581,1709304662050,-500.0,0.00022739,2]
[315960582,1709304662060,-500.0,0.00022739,2]
[315960583,1709304662070,-500.0,0.00022739,2]
[315960584,1709304662079,-500.0,0.00022739,2]
[315960585,1709304662088,-500.0,0.00022739,2]
[315960586,1709304662098,-210.18731503,0.00022739,2]
[315960587,1709304662107,-500.0,0.00022739,2]
[315960588,1709304662116,-500.0,0.00022739,2]
[315960589,1709304662126,-500.0,0.00022739,2]
[315960590,1709304662135,-500.0,0.00022739,2]
[315960591,1709304662145,-500.0,0.00022739,2]
[315960592,1709304662155,-568.17,0.00022739,2]
[315960593,1709304662165,-914.25,0.00022739,2]
[315960594,1709304662174,-891.0,0.00022739,2]
[315960595,1709304662185,-500.0,0.00022739,2]
[315960596,1709304662195,-500.0,0.00022739,2]
[315960597,1709304662204,-619.93,0.00022739,2]
[315960598,1709304662214,-500.0,0.00022739,2]
[315960599,1709304662223,-500.0,0.00022739,2]
[315960600,1709304662233,-500.0,0.00022739,2]
[315960601,1709304662242,-375.13584948,0.00022739,2]
[315960602,1709304662251,-500.0,0.00022739,2]
[315960603,1709304662261,-500.0,0.00022739,2]
[315960604,1709304662270,-500.0,0.00022739,2]
[315960605,1709304662280,-522.94,0.00022739,2]
[315960606,1709304662292,-500.0,0.00022739,2]
[315960607,1709304662302,-500.0,0.00022739,2]
[315960608,1709304662312,-500.0,0.00022739,2]
[315960609,1709304662321,-500.0,0.00022739,2]
[315960610,1709304662331,-500.0,0.00022739,2]
[315960611,1709304662341,-734.86,0.00022739,2]
[315960612,1709304662351,-500.0,0.00022739,2]
[315960613,1709304662360,-500.0,0.00022739,2]
[315960614,1709304662370,-309.99,0.00022739,2]
[315960615,1709304662379,-500.0,0.00022739,2]
[315960616,1709304662389,-500.0,0.00022739,2]
[315960617,1709304662398,-500.0,0.00022739,2]
[315960618,1709304662407,-500.0,0.00022739,2]
[315960619,1709304662417,-500.0,0.00022739,2]
[315960620,1709304662426,-500.0,0.00022739,2]
[315960621,1709304662436,-500.0,0.00022739,2]
[315960622,1709304662445,-500.0,0.00022739,2]
[315960623,1709304662454,-500.0,0.00022739,2]
[315960624,1709304662464,-604.91,0.00022739,2]
[315960625,1709304662473,-518.62,0.00022739,2]
[315960626,1709304662483,-563.12,0.00022739,2]
[315960627,1709304662493,-500.0,0.00022739,2]
[315960628,1709304662502,-665.4,0.00022739,2]
[315960629,1709304662512,-1165.51,0.00022739,2]
[315960630,1709304662521,-500.0,0.00022739,2]
[315960631,1709304662531,-500.0,0.00022739,2]
[315960632,1709304662542,-607.15,0.00022739,2]
[315960633,1709304662552,-635.37,0.00022739,2]
[315960634,1709304662562,-518.91,0.00022739,2]
[315960635,1709304662571,-881.45,0.00022739,2]
[315960636,1709304662581,-500.0,0.00022739,2]
[315960637,1709304662590,-151.0,0.00022739,7]
[315960638,1709304662600,-500.0,0.00022739,2]
[315960639,1709304662610,-767.1,0.00022739,2]
[315960640,1709304662619,-500.0,0.00022739,2]
[315960641,1709304662628,-542.23,0.00022739,2]
[315960642,1709304662637,-500.0,0.00022739,2]
[315960643,1709304662647,-274.23,0.00022739,2]
[315960644,1709304662657,-500.0,0.00022739,2]
[315960645,1709304662666,-500.0,0.00022739,2]
[315960646,1709304662676,-700.83,0.00022739,2]
[315960647,1709304662685,-500.0,0.00022739,2]
[315960648,1709304662695,-500.0,0.00022739,2]
[315960649,1709304662704,-617.06,0.00022739,2]
[315960650,1709304662714,-512.9,0.00022739,2]
[315960651,1709304662723,-500.0,0.00022739,2]
[315960652,1709304662732,-599.44,0.00022739,2]
[315960653,1709304662742,-504.73,0.00022739,2]
[315960654,1709304662751,-500.0,0.00022739,2]
[315960655,1709304662760,-500.0,0.00022739,2]
[315960656,1709304662770,-500.0,0.00022739,2]
[315960657,1709304662779,-500.0,0.00022739,2]
[315960658,1709304662788,-500.0,0.00022739,2]
[315960659,1709304662799,-622.61,0.00022739,2]
[315960660,1709304662808,-217.12,0.00022739,2]
[315960661,1709304662817,-500.0,0.00022739,2]
[315960662,1709304662826,-500.0,0.00022739,2]
[315960663,1709304662835,-500.0,0.00022739,2]
[315960664,1709304662844,-608.49,0.00022739,2]
[315960665,1709304662854,-500.0,0.00022739,2]
[315960666,1709304662863,-500.0,0.00022739,2]
[315960667,1709304662873,-501.18,0.00022739,2]
[315960668,1709304662882,-500.0,0.00022739,2]
[315960669,1709304662891,-500.0,0.00022739,2]
[315960670,1709304662901,-804.57,0.00022739,2]
[315960671,1709304662910,-500.0,0.00022739,2]
[315960672,1709304662920,-278.29472,0.00022739,2]
[315960673,1709304662930,-1203.89,0.00022739,2]
[315960674,1709304662940,-649.73,0.00022739,2]
[315960675,1709304662953,-500.0,0.00022739,2]
[315960676,1709304662962,-500.0,0.00022739,2]
[315960677,1709304662971,-500.0,0.00022739,2]
[315960678,1709304662982,-500.0,0.00022739,2]
[315960679,1709304662991,-708.22,0.00022739,2]
[315960680,1709304663001,-504.37,0.00022739,2]
[315960681,1709304663011,-500.0,0.00022739,2]
[315960682,1709304663020,-500.0,0.00022739,2]
[315960683,1709304663029,-500.0,0.00022739,2]
[315960684,1709304663042,-653.78,0.00022739,2]
[315960685,1709304663051,-500.0,0.00022739,2]
[315960686,1709304663062,-745.79,0.00022739,2]
[315960687,1709304663071,-500.0,0.00022739,2]
[315960688,1709304663081,-500.0,0.00022739,2]
[315960689,1709304663090,-439.85218147,0.00022739,2]
[315960690,1709304663100,-500.0,0.00022739,2]
[315960691,1709304663111,-587.27,0.00022739,2]
[315960692,1709304663121,-662.93,0.00022739,2]
[315960693,1709304663131,-500.0,0.00022739,2]
[315960694,1709304663141,-500.0,0.00022739,2]
[315960695,1709304663151,-500.0,0.00022739,2]
[315960696,1709304663162,-500.0,0.00022739,2]
[315960697,1709304663171,-500.0,0.00022739,2]
[315960698,1709304663181,-869.05,0.00022739,2]
[315960699,1709304663191,-500.0,0.00022739,2]
[315960700,1709304663200,-500.0,0.00022739,2]
[315960701,1709304663211,-5613.4,0.00022739,2]
[315960702,1709304663220,-393.60458618,0.00022739,2]
[315960703,1709304663230,-572.07,0.00022739,2]
[315960704,1709304663239,-588.06,0.00022739,2]
[315960705,1709304663249,-500.0,0.00022739,2]
[315960706,1709304663258,-500.0,0.00022739,2]
[315960707,1709304663268,-500.0,0.00022739,2]
[315960708,1709304663278,-500.0,0.00022739,2]
[315960709,1709304663287,-500.0,0.00022739,2]
[315960710,1709304663300,-500.0,0.00022739,2]
[315960711,1709304663310,-500.0,0.00022739,2]
[315960712,1709304663319,-500.0,0.00022739,2]
[315960713,1709304663329,-768.26,0.00022739,2]
[315960714,1709304663340,-500.0,0.00022739,2]
[315960715,1709304663350,-500.0,0.00022739,2]
[315960716,1709304663360,-500.0,0.00022739,2]
[315960717,1709304663370,-2234.68,0.00022739,2]
[315960718,1709304663379,-518.41,0.00022739,2]
[315960719,1709304663388,-419.61,0.00022739,2]
[315960720,1709304663398,-500.0,0.00022739,2]
[315960721,1709304663407,-500.0,0.00022739,2]
[315960722,1709304663417,-500.0,0.00022739,2]
[315960723,1709304663426,-1233.2,0.00022739,2]
[315960724,1709304663436,-5119.78,0.00022739,2]
[315960725,1709304663446,-500.0,0.00022739,2]
[315960726,1709304663455,-500.0,0.00022739,2]
[315960727,1709304663465,-530.81,0.00022739,2]
[315960728,1709304663475,-500.0,0.00022739,2]
[315960729,1709304663484,-1508.58,0.00022739,2]
[315960730,1709304663494,-1333.61,0.00022739,2]
[315960731,1709304663503,-500.0,0.00022739,2]
[315960732,1709304663512,-5695.63,0.00022739,2]
[315960733,1709304663521,-518.79124008,0.00022739,2]
[315960734,1709304663530,-2520.08,0.00022739,2]
[315960735,1709304663540,-500.0,0.00022739,2]
[315960736,1709304663551,-886.79,0.00022739,2]
[315960737,1709304663560,-671.99,0.00022739,2]
[315960738,1709304663570,-1457.3,0.00022739,2]
[315960739,1709304663579,-835.65,0.00022739,2]
[315960740,1709304663589,-673.14,0.00022739,2]
[315960741,1709304663598,-500.0,0.00022739,2]
[315960742,1709304663607,-2168.08,0.00022739,2]
[315960743,1709304663619,-867.96,0.00022739,2]
[315960744,1709304663629,-849.12,0.00022739,2]
[315960745,1709304663638,-583.75,0.00022739,2]
[315960746,1709304663648,-739.67,0.00022739,2]
[315960747,1709304663657,-923.44,0.00022739,2]
[315960748,1709304663666,-777.65,0.00022739,2]
[315960749,1709304663676,-500.0,0.00022739,2]
[315960750,1709304663686,-253.23383816,0.00022739,2]
[315960751,1709304663696,-500.0,0.00022739,2]
[315960752,1709304663707,-1322.95,0.00022739,2]
[315960753,1709304663718,-817.41,0.00022739,2]
[315960754,1709304663727,-749.79,0.00022739,2]
[315960755,1709304663736,-525.58,0.00022739,2]
[315960756,1709304663745,-500.0,0.00022739,2]
[315960757,1709304663754,-500.0,0.00022739,2]
[315960758,1709304663763,-1982.58,0.00022739,2]
[315960759,1709304663772,-5965.14,0.00022739,2]
[315960760,1709304663782,-622.78,0.00022739,2]
[315960761,1709304663792,-991.51,0.00022739,2]
[315960762,1709304663801,-663.76,0.00022739,2]
[315960763,1709304663810,-519.42,0.00022739,2]
[315960764,1709304663819,-500.0,0.00022739,2]
[315960765,1709304663829,-1057.67,0.00022739,2]
[315960766,1709304663838,-550.55,0.00022739,2]
[315960767,1709304663847,-1060.03,0.00022739,2]
[315960768,1709304663856,-500.0,0.00022739,2]
[315960769,1709304663865,-4804.81,0.00022739,2]
[315960770,1709304663874,-602.26,0.00022739,2]
[315960771,1709304663883,-1370.42,0.00022739,2]
[315960772,1709304663892,-842.73,0.00022739,2]
[315960773,1709304663901,-500.0,0.00022739,2]
[315960774,1709304663910,-500.0,0.00022739,2]
[315960775,1709304663919,-946.22,0.00022739,2]
[315960776,1709304663984,-762.45,0.00022739,2]
[315960777,1709304663993,-544.92,0.00022739,2]
[315960778,1709304664003,-500.0,0.00022739,2]
[315960779,1709304664013,-832.0,0.00022739,2]
[315960780,1709304664022,-3414.28,0.00022739,2]
[315960781,1709304664030,-514.54,0.00022739,2]
[315960782,1709304664039,-500.0,0.00022739,2]
[315960783,1709304664050,-787.0,0.00022739,2]
[315960784,1709304664060,-500.0,0.00022739,2]
[315960785,1709304664069,-16058.2,0.00022739,2]
[315960786,1709304664079,-2082.61,0.00022739,2]
[315960787,1709304664088,-670.35,0.00022739,2]
[315960788,1709304664097,-500.0,0.00022739,2]
[315960789,1709304664107,-1826.96,0.00022739,2]
[315960790,1709304664116,-1165.44,0.00022739,2]
[315960791,1709304664126,-500.0,0.00022739,2]
[315960792,1709304664135,-863.61,0.00022739,2]
[315960793,1709304664144,-926.41,0.00022739,2]
[315960794,1709304664153,-500.0,0.00022739,2]
[315960795,1709304664163,-500.0,0.00022739,2]
[315960796,1709304664173,-898.02,0.00022739,2]
[315960797,1709304664182,-1476.25,0.00022739,2]
[315960798,1709304664191,-1961.56,0.00022739,2]
[315960799,1709304664201,-1301.49,0.00022739,2]
[315960800,1709304664210,-621.25,0.00022739,2]
[315960801,1709304664219,-2102.69,0.00022739,2]
[315960802,1709304664228,-500.0,0.00022739,2]
[315960803,1709304664237,-959.79,0.00022739,2]
[315960804,1709304664247,-821.88,0.00022739,2]
[315960805,1709304664256,-715.36,0.00022739,2]
[315960806,1709304664265,-977.95,0.00022739,2]
[315960807,1709304664274,-8463.14,0.00022739,2]
[315960808,1709304664283,-515.46,0.00022739,2]
[315960809,1709304664295,-500.0,0.00022739,2]
[315960810,1709304664305,-856.55,0.00022739,2]
[315960811,1709304664315,-500.0,0.00022739,2]
[315960812,1709304664325,-1080.42,0.00022739,2]
[315960813,1709304664334,-500.0,0.00022739,2]
[315960814,1709304664344,-1310.24,0.00022739,2]
[315960815,1709304664353,-767.36,0.00022739,2]
[315960816,1709304664362,-1272.58,0.00022739,2]
[315960817,1709304664371,-500.0,0.00022739,2]
[315960818,1709304664381,-500.0,0.00022739,2]
[315960819,1709304664390,-500.0,0.00022739,2]
[315960820,1709304664399,-292.13664291,0.00022739,2]
[315960821,1709304664409,-728.36,0.00022739,2]
[315960822,1709304664418,-500.0,0.00022739,2]
[315960823,1709304664428,-1924.48,0.00022739,2]
[315960824,1709304664436,-500.0,0.00022739,2]
[315960825,1709304664446,-500.0,0.00022739,2]
[315960826,1709304664455,-976.69,0.00022739,2]
[315960827,1709304664464,-500.0,0.00022739,2]
[315960828,1709304664473,-1618.54,0.00022739,2]
[315960829,1709304664482,-500.0,0.00022739,2]
[315960830,1709304664491,-500.0,0.00022739,2]
[315960831,1709304664500,-1114.42,0.00022739,2]
[315960832,1709304664509,-1259.88,0.00022739,2]
[315960833,1709304664519,-914.02,0.00022739,2]
[315960834,1709304664528,-500.0,0.00022739,2]
[315960835,1709304664538,-648.62,0.00022739,2]
[315960836,1709304664551,-500.0,0.00022739,2]
[315960837,1709304664561,-500.0,0.00022739,2]
[315960838,1709304664570,-500.0,0.00022739,2]
[315960839,1709304664579,-1013.83,0.00022739,2]
[315960840,1709304664588,-545.67,0.00022739,2]
[315960841,1709304664598,-1238.96,0.00022739,2]
[315960842,1709304664607,-500.0,0.00022739,2]
[315960843,1709304664616,-616.56,0.00022739,2]
[315960844,1709304664625,-500.0,0.00022739,2]
[315960845,1709304664635,-500.0,0.00022739,2]
[315960846,1709304664644,-500.0,0.00022739,2]
[315960847,1709304664654,-1677.5,0.00022739,2]
[315960848,1709304664663,-500.0,0.00022739,2]
[315960849,1709304664673,-500.0,0.00022739,2]
[315960850,1709304664683,-544.23,0.00022739,2]
[315960851,1709304664692,-500.0,0.00022739,2]
[315960852,1709304664701,-500.0,0.00022739,2]
[315960853,1709304664711,-1410.89,0.00022739,2]
[315960854,1709304664720,-6930.47,0.00022739,2]
[315960855,1709304664729,-500.0,0.00022739,2]
[315960856,1709304664739,-916.57,0.00022739,2]
[315960857,1709304664748,-1063.22,0.00022739,2]
[315960858,1709304664757,-1199.75,0.00022739,2]
[315960859,1709304664766,-500.0,0.00022739,2]
[315960860,1709304664775,-500.0,0.00022739,2]
[315960861,1709304664785,-1445.42,0.00022739,2]
[315960862,1709304664797,-615.26,0.00022739,2]
[315960863,1709304664807,-649.09,0.00022739,2]
[315960864,1709304664816,-1054.33,0.00022739,2]
[315960865,1709304664826,-500.0,0.00022739,2]
[315960866,1709304664835,-720.15,0.00022739,2]
[315960867,1709304664845,-852.94,0.00022739,2]
[315960868,1709304664854,-500.0,0.00022739,2]
[315960869,1709304664864,-3604.85,0.00022739,2]
[315960870,1709304664872,-842.93,0.00022739,2]
[315960871,1709304664882,-1437.58,0.00022739,2]
[315960872,1709304664891,-500.0,0.00022739,2]
[315960873,1709304664900,-724.71,0.00022739,2]
[315960874,1709304664909,-884.08,0.00022739,2]
[315960875,1709304664920,-500.0,0.00022739,2]
[315960876,1709304664929,-500.0,0.00022739,2]
[315960877,1709304664937,-796.47,0.00022739,2]
[315960878,1709304664946,-1109.48,0.00022739,2]
[315960879,1709304664958,-500.0,0.00022739,2]
[315960880,1709304664967,-610.55,0.00022739,2]
[315960881,1709304664976,-502.44,0.00022739,2]
[315960882,1709304664985,-500.0,0.00022739,2]
[315960883,1709304664995,-589.85,0.00022739,2]
[315960884,1709304665004,-2876.65,0.00022739,2]
[315960885,1709304665014,-500.0,0.00022739,2]
[315960886,1709304665024,-1378.41,0.00022739,2]
[315960887,1709304665036,-607.96,0.00022739,2]
[315960888,1709304665048,-1411.09,0.00022739,2]
[315960889,1709304665059,-571.16,0.00022739,2]
[315960890,1709304665070,-500.0,0.00022739,2]
[315960891,1709304665081,-500.0,0.00022739,2]
[315960892,1709304665092,-500.0,0.00022739,2]
[315960893,1709304665103,-3631.72,0.00022739,2]
[315960894,1709304665113,-604.11,0.00022739,2]
[315960895,1709304665123,-155.51,0.0002274,2]
[315960896,1709304665133,-151.35,0.0002274,2]
[315960897,1709304665143,-168.63,0.0002274,2]
[315960898,1709304665153,-168.64,0.0002274,2]
[315960899,1709304665163,-895.17960564,0.00022745,2]
[315960900,1709304665174,-1840.20780786,0.00022749,2]
[315960901,1709304665185,-249.10988376,0.00022752,2]
[315960902,1709304665194,-11797.33551515,0.0002277,2]
[315960903,1709304665613,-500.0,0.00022027,2]
[315960904,1709304665624,-119772.67548893,0.0002277,2]
[315960905,1709304665633,-22639.49762459,0.0002277,2]
[315960906,1709304665642,-155.05367639,0.00022778,2]
[315960907,1709304665652,-163.33354568,0.00022778,2]
[315960908,1709304665661,-20000.0,0.0002278,4]
[315960909,1709304665672,-10014.25205714,0.0002279,2]
[315960910,1709304665682,-1497.25,0.00022794,2]
[315960911,1709304665691,-762.75,0.00022794,2]
[315960912,1709304665700,-1083.04,0.00022794,2]
[315960913,1709304665709,-500.0,0.00022794,2]
[315960914,1709304665718,-500.0,0.00022794,2]
[315960915,1709304665737,-212.79,0.00022794,2]
[315960916,1709304665749,-500.0,0.00022794,2]
[315960917,1709304665758,-227.62221277,0.00022794,2]
[315960918,1709304665768,-500.0,0.00022794,2]
[315960919,1709304665778,-2102.53,0.00022794,2]
[315960920,1709304665789,-715.33,0.00022794,2]
[315960921,1709304665800,-500.0,0.00022794,2]
[315960922,1709304665811,-661.72,0.00022794,2]
[315960923,1709304665821,-739.85,0.00022794,2]
[315960924,1709304665831,-1959.93,0.00022794,2]
[315960925,1709304665841,-659.56,0.00022794,2]
[315960926,1709304665851,-1577.2,0.00022794,2]
[315960927,1709304665860,-640.32,0.00022794,2]
[315960928,1709304665870,-500.0,0.00022794,2]
[315960929,1709304665880,-500.0,0.00022794,2]
[315960930,1709304665889,-1422.57,0.00022794,2]
[315960931,1709304665899,-2134.63,0.00022794,2]
[315960932,1709304665909,-736.33,0.00022794,2]
[315960933,1709304665919,-500.0,0.00022794,2]
[315960934,1709304665929,-562.5,0.00022794,2]
[315960935,1709304665938,-1355.32,0.00022794,2]
[315960936,1709304665948,-500.0,0.00022794,2]
[315960937,1709304665959,-574.06,0.00022794,2]
[315960938,1709304665973,-517.62,0.00022794,2]
[315960939,1709304665983,-538.98,0.00022794,2]
[315960940,1709304665993,-500.0,0.00022794,2]
[315960941,1709304666003,-2759.21,0.00022794,2]
[315960942,1709304666013,-500.0,0.00022794,2]
[315960943,1709304666024,-500.0,0.00022794,2]
[315960944,1709304666033,-676.01,0.00022794,2]
[315960945,1709304666045,-575.56,0.00022794,2]
[315960946,1709304666056,-1394.07,0.00022794,2]
[315960947,1709304666066,-500.0,0.00022794,2]
[315960948,1709304666076,-500.0,0.00022794,2]
[315960949,1709304666085,-782.53,0.00022794,2]
[315960950,1709304666094,-500.0,0.00022794,2]
[315960951,1709304666104,-500.0,0.00022794,2]
[315960952,1709304666114,-840.02,0.00022794,2]
[315960953,1709304666124,-1904.18,0.00022794,2]
[315960954,1709304666136,-4442.37,0.00022794,2]
[315960955,1709304666147,-185.15461079,0.00022797,2]
[315960956,1709304666157,-155.0,0.00022797,2]
[315960957,1709304666168,-155.19928272,0.00022797,2]
[315960958,1709304666177,-155.08303605,0.00022798,2]
[315960959,1709304666187,-500.0,0.00022798,2]
[315960960,1709304666201,-500.0,0.00022798,2]
[315960961,1709304666211,-632.61631671,0.00022799,2]
[315960962,1709304666221,-32793.29615998,0.00022799,2]
[315960963,1709304666233,-32793.29615993,0.00022799,2]
[315960964,1709304666244,-32793.29615993,0.00022799,2]
[315960965,1709304666255,-32793.29615993,0.00022799,2]
[315960966,1709304666266,-32793.29615993,0.00022799,2]
[315960967,1709304666276,-32793.29615993,0.00022799,2]
[315960968,1709304666286,-32793.29615993,0.00022799,2]
[315960969,1709304666298,-32793.29615993,0.00022799,2]
[315960970,1709304666309,-32793.29615993,0.00022799,2]
[315960971,1709304666319,-11960.71897072,0.00022799,2]
[315960972,1709304666330,-11960.71897067,0.00022799,2]
[315960973,1709304666340,-11960.71897067,0.00022799,2]
[315960974,1709304666350,-729.13903339,0.00022799,2]
[315960975,1709304666360,-190.874856,0.00022799,7]
[315960976,1709304666371,-10167.35305312,0.000228,2]
[315960977,1709304666381,-1363.0,0.000228,2]
[315960978,1709304666393,-2000.0,0.00022816,2]
[315960979,1709304666403,-200.0,0.00022816,2]
[315960980,1709304666413,-150.0,0.00022822,2]
[315960981,1709304666423,-500.0,0.00022822,2]
[315960982,1709304666434,-500.0,0.00022822,2]
[315960983,1709304666445,-500.0,0.00022822,2]
[315960984,1709304666455,-500.0,0.00022822,2]
[315960985,1709304666469,-500.0,0.00022822,2]
[315960986,1709304666481,-500.0,0.00022822,2]
[315960987,1709304666492,-500.0,0.00022822,2]
[315960988,1709304666502,-500.0,0.00022822,2]
[315960989,1709304666513,-500.0,0.00022822,2]
[315960990,1709304666524,-500.0,0.00022822,2]
[315960991,1709304666536,-500.0,0.00022822,2]
[315960992,1709304666552,-500.0,0.00022822,2]
[315960993,1709304666564,-181.95577315,0.00022829,2]
[315960994,1709304666575,-155.0,0.00022829,2]
[315960995,1709304666586,-158.55,0.00022831,2]
[315960996,1709304666598,-355.72,0.00022836,2]
[315960997,1709304666608,-409.83,0.00022841,2]
[315960998,1709304666619,-400.78,0.00022841,2]
[315960999,1709304666630,-204.36,0.00022841,2]
[315961000,1709304666643,-1372.67557388,0.0002285,2]
[315961001,1709304666654,-156.06,0.00022857,2]
[315961002,1709304666666,-155.64,0.00022876,2]
[315961003,1709304666678,-155.51,0.00022877,2]
[315961004,1709304666690,-1280.48226839,0.00022883,2]
[315961005,1709304666702,-5800.0,0.00022892,2]
[315961006,1709304666713,-500.0,0.00022899,2]
[315961007,1709304666724,-174.74398257,0.000229,2]
[315961008,1709304666734,-16000.0,0.000229,2]
[315961009,1709304666749,-5105.28462421,0.000229,3]
[315961010,1709304666760,-58000.0,0.000229,2]
[315961011,1709304666771,-160.0,0.000229,2]
[315961012,1709304666782,-5800.0,0.000229,2]
[315961013,1709304666796,-58000.0,0.000229,2]
[315961014,1709304666807,-15623.68561183,0.000229,2]
[315961015,1709304666818,-5800.0,0.000229,2]
[315961016,1709304666828,-1916.26994679,0.000229,2]
[315961017,1709304666839,-152.95997466,0.000229,2]
[315961018,1709304666850,-152.95997433,0.000229,2]
[315961019,1709304666861,-152.95997433,0.000229,2]
[315961020,1709304666874,-152.95997433,0.000229,2]
[315961021,1709304666886,-152.95997433,0.000229,2]
[315961022,1709304666904,-152.95997433,0.000229,2]
[315961023,1709304666922,-152.95997433,0.000229,2]
[315961024,1709304666932,-152.95997433,0.000229,2]
[315961025,1709304666945,-152.95997433,0.000229,2]
[315961026,1709304666964,-152.95997433,0.000229,2]
[315961027,1709304666977,-152.95997433,0.000229,2]
[315961028,1709304667003,-152.95997433,0.000229,2]
[315961029,1709304667021,-152.95997433,0.000229,2]
[315961030,1709304667040,-152.95997433,0.000229,2]
[315961031,1709304667071,-152.95997433,0.000229,2]
[315961032,1709304667086,-152.95997433,0.000229,2]
[315961033,1709304667096,-152.95997433,0.000229,2]
[315961034,1709304667106,-152.95997433,0.000229,2]
[315961035,1709304667126,-152.95997433,0.000229,2]
[315961036,1709304667136,-152.95997433,0.000229,2]
[315961037,1709304667149,-152.95997433,0.000229,2]
[315961038,1709304667168,-152.95997433,0.000229,2]
[315961039,1709304667191,-152.95997433,0.000229,2]
[315961040,1709304667206,-152.95997433,0.000229,2]
[315961041,1709304667221,-152.95997433,0.000229,2]
[315961042,1709304667238,-152.95997433,0.000229,2]
[315961043,1709304667259,-152.95997433,0.000229,2]
[315961044,1709304667271,-152.95997433,0.000229,2]
[315961045,1709304667282,-152.95997433,0.000229,2]
[315961046,1709304667296,-152.95997433,0.000229,2]
[315961047,1709304667343,-152.95997433,0.000229,2]
[315961048,1709304667363,-152.95997433,0.000229,2]
[315961049,1709304667375,-152.95997433,0.000229,2]
[315961050,1709304667388,-152.95997433,0.000229,2]
[315961051,1709304667400,-152.95997433,0.000229,2]
[315961052,1709304667411,-152.95997433,0.000229,2]
[315961053,1709304667422,-152.95997433,0.000229,2]
[315961054,1709304667434,-152.95997433,0.000229,2]
[315961055,1709304667447,-7744.79355677,0.000229,2]
[315961056,1709304667458,-895.17960564,0.000229,2]
[315961057,1709304667470,-1872.10964613,0.000229,6]
[315961058,1709304667482,-1604.91220914,0.000229,2]
[315961059,1709304667495,-1324.17835626,0.000229,2]
[315961060,1709304667506,-2393.08183575,0.000229,2]
[315961061,1709304667518,-1324.17835613,0.000229,2]
[315961062,1709304667530,-1324.17835613,0.000229,2]
[315961063,1709304667542,-734.08912334,0.000229,2]
[315961064,1709304667555,-1324.17835613,0.000229,2]
[315961065,1709304667566,-32793.29615993,0.000229,2]
[315961066,1709304667577,-12739.62696659,0.000229,2]
[315961067,1709304667589,-1324.17835613,0.000229,2]
[315961068,1709304667601,-1324.17835613,0.000229,2]
[315961069,1709304667613,-1324.17835613,0.000229,2]
[315961070,1709304667624,-1069.98240995,0.000229,2]